Cogmind - Beta 15 @@@ ROGUE MODE // 2025.08.13 @ 17:29:57 Player: LightKnight Result: Self-destructed Performance ------------- Evolutions (2) 1000 Regions Visited (6) 1200 Robots Destroyed (53) 265 Value Destroyed (1188) 1188 Prototype IDs (45) 900 Alien Tech Used (0) 0 Bonus (220) 220 TOTAL SCORE: 4773 Bonus ------- Follower Combat Kills 7 Aligned with FarCom 300 Friendly Fire -87 Cogmind --------- Core Integrity 213/550 Matter 280/300 Energy 240/240 System Corruption 9% Temperature Cool (0) Movement Rolling (110) Ox2 Location -8/Storage Parts ------- > --- POWER (1) -------- Nuclear Core > --- PROPULSION (2) --- Wheel Wheel > --- UTILITY (6) ------ High-capacity Storage Unit Trap Scanner Advanced Visual Processing Unit > --- WEAPON (2) ------- Longsword +1 > --- INVENTORY (20) --- Reinforced Deuterium Engine Light Fission Core Wheel Experimental Sensor Array Improved Signal Interpreter Hardened Light Armor Plating Advanced EMP Blaster Mini Grenade Launcher Improved Datajack Plasma Cutter Maul Peak State ------------ > --- POWER ------------ Nuclear Core > --- PROPULSION ------- Compact Wheel Compact Wheel > --- UTILITY ---------- High-capacity Storage Unit Trap Scanner Advanced Visual Processing Unit Medium Armor Plating Insulated Plating Hardlight Generator > --- WEAPON ----------- Advanced EMP Blaster Katana > --- INVENTORY -------- Nuclear Core Reinforced Deuterium Engine Light Fission Core Wheel Wheel Wheel Experimental Sensor Array Improved Signal Interpreter Hardened Light Armor Plating Mini Grenade Launcher Improved Datajack Plasma Cutter Mace Maul Longsword +1 [Rating: 31] Favorites ----------- Power Ion Engine Engine Ion Engine Power Core Nuclear Core Propulsion Compact Wheel Treads Light Treads Leg Aluminum Leg Wheel Compact Wheel Utility Small Storage Unit Device Trap Scanner Storage Small Storage Unit Processor Advanced Visual Processing Unit Protection Light Armor Plating Weapon Mace Energy Gun Spread Laser Ballistic Gun Heavy Assault Rifle Ballistic Cannon Light Cannon Launcher Grenade Launcher Impact Weapon Mace Slashing Weapon Katana Special Melee Weapon Datajack Build | -11 -10 -10 -10 -9 -8 -8 ------- Run | Yrd Mat Min Exi Min Mat Sto Slots Evolved 4 | . . . . . 4 . Power . | . . . . . . . Propulsion . | . . . . . . . Utility 4 | . . . . . 4 . Weapon . | . . . . . . . Parts Attached 45 | 1 7 15 2 2 8 10 Power 6 | . 1 3 . . . 2 Engine 3 | . 1 2 . . . . Core 3 | . . 1 . . . 2 Reactor . | . . . . . . . Propulsion 9 | . 1 4 . 1 1 2 Treads 3 | . . 3 . . . . Leg 1 | . 1 . . . . . Wheel 5 | . . 1 . 1 1 2 Hover . | . . . . . . . Flight . | . . . . . . . Utility 15 | . 2 4 . . 6 3 Device 4 | . 1 1 . . . 2 Storage 3 | . . 1 . . 1 1 Processor 1 | . . . . . 1 . Hackware . | . . . . . . . Protection 7 | . 1 2 . . 4 . Artifact . | . . . . . . . Weapon 15 | 1 3 4 2 1 1 3 Energy Gun 5 | 1 2 1 . 1 . . Energy Cannon . | . . . . . . . Ballistic Gun 1 | . . 1 . . . . Ballistic Cannon 1 | . 1 . . . . . Launcher 3 | . . 1 . . . 2 Special Weapon . | . . . . . . . Impact Weapon 2 | . . 1 1 . . . Slashing Weapon 2 | . . . . . 1 1 Piercing Weapon . | . . . . . . . Special Melee Weapon 1 | . . . 1 . . . Unidentified Prototypes 1 | . . . . . . 1 Parts Lost 19 | . 1 8 . . 2 8 Power 3 | . . 2 . . . 1 Propulsion 5 | . . 2 . . 1 2 Utility 5 | . . 1 . . 1 3 Weapon 6 | . 1 3 . . . 2 Highest Loss Streak 8 | . 1 4 . . 1 8 To Critical Strikes . | . . . . . . . Average Backups 10 | 6 7 7 9 10 13 14 Power 1 | 1 1 . 2 2 2 2 Propulsion 1 | 4 2 . 1 1 1 2 Utility 2 | . . 1 3 3 3 3 Weapon 3 | 1 2 3 3 3 4 4 Tool/Special . | . . . . . . . Unused Backups 19 | . 5 1 2 2 . 9 Power 6 | . 1 1 1 . . 3 Propulsion 3 | . 1 . . 1 . 1 Utility 4 | . . . 1 1 . 2 Weapon 4 | . 3 . . . . 1 Tool/Special 2 | . . . . . . 2 Average Slot Usage (%) 93 | . 95 94 98 100 84 93 Engine 9 | . 14 5 14 14 9 2 Core 2 | . . 7 . . . 6 Treads 5 | . . 17 14 2 . . Leg 6 | . 28 1 . . . . Wheel 11 | . . 5 14 25 17 17 Device 5 | . 4 8 . . . 13 Storage 12 | . 14 14 14 14 9 9 Processor 2 | . . . . . 7 9 Protection 12 | . 5 5 14 14 23 18 Energy Gun 9 | . 24 10 . 13 1 . Ballistic Gun 1 | . . 1 14 1 . . Launcher 2 | . . 7 . . . 3 Impact Weapon 6 | . . 7 4 13 12 4 Slashing Weapon 2 | . . . . . 4 9 Peak Build Rating 31 | 6 10 13 12 12 26 31 Average Rating 15 | 6 7 11 11 12 21 27 On Entrance 11 | 6 6 10 10 12 12 26 Naked Turns . | . . . . . . . Heaviest Build 72 | 12 17 23 23 24 46 72 Greatest Support 40 | 20 20 40 10 26 32 32 Greatest Overweight (x) 3 | . . 2 2 2 1 3 Average Overweight (x) . | . . . 2 . . 1 Largest Inventory Capacity 20 | 8 8 10 10 10 15 20 Average Capacity 11 | 8 8 8 10 10 14 15 Most Carried 15 | 6 8 10 10 10 15 15 Average Carried 10 | 6 7 7 9 9 13 14 Final Capacity 20 | 8 8 10 10 10 15 20 Final Carried 15 | 6 8 7 10 10 15 11 Class Distribution -------------------- 78% | Mutant 15% | Assassin 3% | Derelict-Mutant Dominant Class ---------------- Mutant | -10/Materials Mutant | -10/Mines Mutant | -10/Exiles Mutant | -9/Mines Mutant | -8/Materials Assassin | -8/Storage Resources | -11 -10 -10 -10 -9 -8 -8 ----------- Run | Yrd Mat Min Exi Min Mat Sto Matter Collected 822 | 194 122 240 . 59 105 102 Remotely . | . . . . . . . Salvage Created 1689 | . 493 235 . 133 233 595 Parts 97 | . 38 10 . 8 12 29 Haulers Intercepted 7 | . 1 . . . 1 5 Recyclers Shooed 3 | . 2 1 . . . . Parts Field Recycled . | . . . . . . . Retrieved Matter . | . . . . . . . Parts Self-Destructed . | . . . . . . . Prevented . | . . . . . . . Kills | -11 -10 -10 -10 -9 -8 -8 ------- Run | Yrd Mat Min Exi Min Mat Sto Combat Hostiles Destroyed 41 | . 15 13 . 4 4 5 Melee 9 | . . 3 . 1 2 3 Guns 19 | . 11 5 . 3 . . Cannons 2 | . 2 . . . . . AOE 8 | . 2 4 . . . 2 Classes Destroyed 10 | . 4 4 . 1 1 . Worker 5 | . . 1 . 2 1 1 Builder 2 | . . 2 . . . . Tunneler 2 | . . . . 2 . . Hauler 7 | . 1 . . . 1 5 Watcher 3 | . 2 . . . . 1 Swarmer 12 | . 6 1 . 4 . 1 Grunt 19 | . 9 4 . . 3 3 Sentry 1 | . . . . . 1 . Demolisher 1 | . . 1 . . . . Assembled 7 | . . 7 . . . . Best Kill Streak 4 | . 4 2 . 4 3 2 Combat Bots Only 4 | . 4 2 . 4 3 1 Max Kills in Single Turn 2 | . 2 1 . 1 1 1 Gunslinging . | . . . . . . . Exploded 2 | . 2 1 . . . 1 Melee 1 | . . 1 . 1 1 1 Uniques/NPCs Destroyed 1 | . . . . . . 1 01-MTF (-8/Storage) Combat | -11 -10 -10 -10 -9 -8 -8 -------- Run | Yrd Mat Min Exi Min Mat Sto Hostile Shots Fired 208 | . 40 42 . 19 34 73 Missed 45 | . 11 7 . 7 6 14 Hits 163 | . 29 35 . 12 28 59 Melee 9 | . . 9 . . . . Projectile 154 | . 29 26 . 12 28 59 AOE 10 | . . 10 . . . . Critical Strikes 4 | . . . . . 2 2 Part Disruptions 5 | . . . . . . 5 Damage Taken 2770 | . 339 973 . 100 412 946 Core 541 | . 85 119 . . 73 264 Absorbed by Shields 76 | . . . . . . 76 Redirected to Shielding 38 | . 29 . . . 9 . Ignored by Resistances 29 | . . . . . . 29 Regen/Repaired (Parts) 114 | . . . . . 36 78 Core Remaining (%) 59 | 100 . . . 18 . . Volleys Fired 83 | . 45 25 . 8 1 4 Largest 2 | . 2 2 . 1 1 1 Hottest 110 | . 110 110 . 65 65 36 Shots Fired 125 | . 76 36 . 8 1 4 Gun 99 | . 65 25 . 8 1 . Cannon 11 | . 11 . . . . . Launcher 15 | . . 11 . . . 4 Special . | . . . . . . . Kinetic 17 | . 11 3 . 3 . . Thermal 63 | . 42 15 . 5 1 . Explosive 12 | . . 11 . . . 1 Electromagnetic 33 | . 23 7 . . . 3 Robot Hit Streak 8 | . 7 8 . 5 1 2 Robot Miss Streak 7 | . 7 7 . 3 4 1 Penetration Max . | . . . . . . . Secondary Targets . | . . . . . . . Shots Hit Robots 159 | . 47 34 6 13 24 35 Core Hits 109 | . 46 32 . 9 6 16 Critical Kills 1 | . . 1 . . . . Critical Parts Destroyed 2 | . . . . . 2 . Critical Strikes 5 | . 1 1 . . 2 1 Blast 1 | . 1 . . . . . Smash 3 | . . 1 . . 2 . Sever 1 | . . . . . . 1 Melee Attacks 106 | . . 15 6 7 29 49 Impact 52 | . . 15 . 7 25 5 Slashing 48 | . . . . . 4 44 Piercing . | . . . . . . . Sneak Attacks 24 | . . 2 6 6 3 7 Combat Hostiles 1 | . . . . 1 . . Follow-up Attacks 6 | . . . . . 4 2 Damage Inflicted 4356 | . 707 990 . 455 696 1508 Guns 864 | . 480 281 . 95 8 . Cannons 74 | . 74 . . . . . Explosions 713 | . 145 337 . . . 231 Melee 2689 | . . 364 . 360 688 1277 Ramming 16 | . 8 8 . . . . Kinetic 148 | . 74 41 . 33 . . Thermal 715 | . 458 171 . 62 8 16 Explosive 464 | . . 337 . . . 127 Electromagnetic 324 | . 167 69 . . . 88 Impact 1451 | . . 364 . 360 630 97 Slashing 1238 | . . . . . 58 1180 Piercing . | . . . . . . . Highest Corruption 9 | . . . . . . 9 Average Corruption 3 | . . . . . . 3 Corruption Purged . | . . . . . . . Corruption Blocked . | . . . . . . . Effects 8 | . . . . . . 8 Message Errors 1 | . . . . . . 1 Matter Fused 2 | . . . . . . 2 Heat Flow Errors 1 | . . . . . . 1 Data Loss (minor) 3 | . . . . . . 3 Alerts 1 | . . . . . . 1 Overload Shots . | . . . . . . . Overflow Damage 286 | . . 16 . 80 110 80 Projectiles . | . . . . . . . Explosions . | . . . . . . . Melee 286 | . . 16 . 80 110 80 Knockbacks 3 | . 1 1 . 1 . . Impact 2 | . . 1 . 1 . . Kinetic 1 | . 1 . . . . . Secondary . | . . . . . . . Self-Inflicted Damage 41 | . . 23 . . . 18 Shots 2 | . . 1 . . . 1 Rammed 1 | . . 1 . . . . Targets Rammed 5 | . 3 2 . . . . Kicked 3 | . 3 . . . . . Crushed 1 | . . 1 . . . . Highest Temperature 212 | . 210 126 . 120 18 212 Average Temperature 53 | . 55 37 . 53 9 75 Received Heat Transfer 504 | . 153 51 . . 225 75 Siege Activations . | . . . . . . . Martial Activations . | . . . . . . . Shielding Activations . | . . . . . . . Robots Disrupted . | . . . . . . . Combat Hostiles . | . . . . . . . Robots Corrupted 8 | . . 2 . 2 2 2 Combat Hostiles 3 | . . 1 . . 2 . Parts Fried 12 | . . 3 . 5 1 3 Impact Corruptions 15 | . . 2 . 5 5 3 Robots Melted . | . . . . . . . Combat Hostiles . | . . . . . . . Parts Melted . | . . . . . . . Heat Transferred 1167 | . 772 265 . 70 10 50 Parts Sabotaged . | . . . . . . . Parts Stolen . | . . . . . . . Parts Stripped . | . . . . . . . Power Chain Reactions 3 | . 2 . . . . 1 Alert | -11 -10 -10 -10 -9 -8 -8 ------- Run | Yrd Mat Min Exi Min Mat Sto Maximum Alert Level 1 | . 1 . . . . . Low Security (%) 96 | 100 85 100 . 100 100 100 Level 1 3 | . 14 . . . . . Level 2 . | . . . . . . . Level 3 . | . . . . . . . Level 4 . | . . . . . . . Level 5 . | . . . . . . . High Security . | . . . . . . . Max Security . | . . . . . . . Peak Influence 264 | . 264 138 . 90 65 54 Initial 88 | . . 88 . . . . Average 39 | . 94 31 . 24 10 10 Influence Increases 1270 | . 509 244 . 111 152 254 Destroy 0b10 Robot/C 680 | . 300 140 . 80 80 80 Destroy 0b10 Robot/NC 95 | . 15 15 . 20 10 35 Destroy Leader 180 | . 76 40 . 10 22 32 Allied During Kill 9 | . . 9 . . . . Successful Hack 43 | . 21 . . . 22 . Select Force Hacks 30 | . . . . . . 30 Disable Machine 120 | . 60 . . . . 60 Destroy Structure 68 | . 7 40 . 1 3 17 Lose Combat Pursuer 45 | . 30 . . . 15 . Influence Decreases 1255 | . 281 472 . 111 152 239 Entered New Map 140 | . . 140 . . . . Time Decay 954 | . 271 231 . 111 142 199 Lost Part 101 | . 10 41 . . 10 40 Lost Ally 60 | . . 60 . . . . Squads Dispatched 7 | . 2 . . . 1 4 Investigation 3 | . 1 . . . 1 1 Extermination . | . . . . . . . Reinforcement 4 | . 1 . . . . 3 Assault . | . . . . . . . Garrison . | . . . . . . . Intercept . | . . . . . . . Searches Triggered . | . . . . . . . Construction Impeded . | . . . . . . . Haulers Reinforced . | . . . . . . . Active Scanning Responses . | . . . . . . . Cargo Convoy Interrupts . | . . . . . . . Stealth | -11 -10 -10 -10 -9 -8 -8 --------- Run | Yrd Mat Min Exi Min Mat Sto Distress Signals 3 | . 2 . . . 1 . Communications Jammed . | . . . . . . . Distress Signals . | . . . . . . . Times Spotted 84 | . 25 15 . 3 7 34 Peak Tracking Total 4 | . 3 3 . 3 3 4 Tactical Retreats 5 | . 2 . . . 1 2 Traps | -11 -10 -10 -10 -9 -8 -8 ------- Run | Yrd Mat Min Exi Min Mat Sto Traps Triggered 5 | . 2 . . . 1 2 Indirectly 2 | . 1 . . . . 1 Trap Hack Attempts . | . . . . . . . Triggered . | . . . . . . . Disarmed . | . . . . . . . Reprogrammed . | . . . . . . . Reused . | . . . . . . . Traps Extracted . | . . . . . . . Installed . | . . . . . . . Triggered . | . . . . . . . Machines | -11 -10 -10 -10 -9 -8 -8 ---------- Run | Yrd Mat Min Exi Min Mat Sto Machines Disabled 8 | . 4 . . . . 4 Max in Single Turn 3 | . 3 . . . . 1 Machines Repaired . | . . . . . . . Machines Dismantled . | . . . . . . . Machines Sabotaged . | . . . . . . . Overloaded Fab Kills . | . . . . . . . Hacking | -11 -10 -10 -10 -9 -8 -8 --------- Run | Yrd Mat Min Exi Min Mat Sto Machines Accessed 17 | . 6 . 2 . 3 6 Terminals 12 | . 6 . . . 2 4 Fabricators . | . . . . . . . Repair Stations 2 | . . . . . 1 1 Recycling Units 1 | . . . . . . 1 Scanalyzers . | . . . . . . . Garrison Access . | . . . . . . . Total Hacks 54 | . 22 . 2 . 11 19 Successful 32 | . 11 . 2 . 7 12 Failed 21 | . 11 . . . 3 7 Catastrophic . | . . . . . . . Database Lockouts 1 | . . . . . 1 . Manual 39 | . 20 . 1 . 7 11 Terminals 47 | . 22 . . . 9 16 Fabricators . | . . . . . . . Repair Stations 4 | . . . . . 2 2 Recycling Units 1 | . . . . . . 1 Scanalyzers . | . . . . . . . Garrison Access . | . . . . . . . Terminal Hacks 18 | . 8 . 2 . 3 5 Record 1 | . . . 1 . . . Robot Analysis 3 | . 2 . . . 1 . Prototype ID Bank 4 | . 2 . . . . 2 Branch Access Points 1 | . . . . . 1 . Terminal Index 1 | . . . . . . 1 Locate Traps 5 | . 3 . . . 1 1 Hauler Manifests 2 | . 1 . . . . 1 Proto ID Catalog 1 | . . . 1 . . . Fabricator Hacks . | . . . . . . . Repair Station Hacks 4 | . . . . . 2 2 Scan Component 2 | . . . . . 1 1 Repair 2 | . . . . . 1 1 Recycling Unit Hacks . | . . . . . . . Scanalyzer . | . . . . . . . Garrison Access Hacks . | . . . . . . . Unauthorized Hacks 10 | . 3 . . . 2 5 Terminals 9 | . 3 . . . 2 4 Botnet 5 | . 3 . . . 1 1 Skim 4 | . . . . . 1 3 Fabricators . | . . . . . . . Repair Stations . | . . . . . . . Recycling Units 1 | . . . . . . 1 Tunnel 1 | . . . . . . 1 Scanalyzers . | . . . . . . . Garrison Access . | . . . . . . . Data Cores Recovered . | . . . . . . . Used . | . . . . . . . Hacking Detections 11 | . 5 . . . 1 5 Full Trace Events . | . . . . . . . Feedback Events . | . . . . . . . Feedback Blocked . | . . . . . . . Robot Schematics Acquired . | . . . . . . . Robots Built . | . . . . . . . Authchips . | . . . . . . . Time . | . . . . . . . Total Robot Build Rating . | . . . . . . . Part Schematics Acquired . | . . . . . . . Parts Built . | . . . . . . . Authchips . | . . . . . . . Time . | . . . . . . . Total Part Build Rating . | . . . . . . . Parts Repaired 2 | . . . . . 1 1 Time 58 | . . . . . 26 32 Parts Recycled . | . . . . . . . Recycled Matter . | . . . . . . . Retrieved Matter . | . . . . . . . Retrieved Components . | . . . . . . . Parts Scanalyzed . | . . . . . . . Part Schematics Acquired . | . . . . . . . Parts Damaged . | . . . . . . . Bothacking | -11 -10 -10 -10 -9 -8 -8 ------------ Run | Yrd Mat Min Exi Min Mat Sto Used RIF Installer . | . . . . . . . Robots Hacked 5 | . . . 5 . . . Non-combat 3 | . . . 3 . . . Combat 2 | . . . 2 . . . Robot Hacks Applied 6 | . . . 6 . . . parse_system 6 | . . . 6 . . . Relay Couplers Released . | . . . . . . . Fabnet Peak Effective % . | . . . . . . . Robots Rewired 1 | . . . . . . 1 Allies Hacked . | . . . . . . . Hacks Repelled . | . . . . . . . Allies | -11 -10 -10 -10 -9 -8 -8 -------- Run | Yrd Mat Min Exi Min Mat Sto Total Allies 13 | . . 3 . . . 10 Largest Group 10 | . . 3 . . . 10 Highest-Rated Group 173 | . . 66 . . . 173 Highest-Rated Ally 31 | . . 31 . . . 29 Total Orders . | . . . . . . . Ally Attacks 9 | . . 9 . . . . Total Damage 125 | . . 125 . . . . Kills 1 | . . 1 . . . . Allies Corrupted . | . . . . . . . Allies Melted . | . . . . . . . Intel | -11 -10 -10 -10 -9 -8 -8 ------- Run | Yrd Mat Min Exi Min Mat Sto Active Infowar (turns) 1358 | . . . . . 559 799 Optics 1358 | . . . . . 559 799 Traps 628 | . . . . . . 628 Robot Analysis Total 3 | . 2 . . . 1 . Derelict Logs Recovered 1 | . . 1 . . . . Drone Launches . | . . . . . . . Drone Recoveries . | . . . . . . . Exploration | -11 -10 -10 -10 -9 -8 -8 ------------- Run | Yrd Mat Min Exi Min Mat Sto Turns Passed 4246 | 2 1013 900 407 418 707 799 Spaces Moved 3025 | 1 708 562 353 408 476 517 Core . | . . . . . . . Treads 282 | . . 282 . . . . Legs 716 | 1 708 7 . . . . Wheels 2027 | . . 273 353 408 476 517 Hover . | . . . . . . . Flight . | . . . . . . . Fastest Speed 90 | 120 120 95 110 90 90 110 Average Speed 115 | 120 120 132 110 91 110 115 Slowest Speed 160 | 120 120 160 110 110 115 145 Overloaded Moves . | . . . . . . . Propulsion Burnouts . | . . . . . . . Robots Hopped . | . . . . . . . Potential Cave-ins . | . . . . . . . Cave-ins Triggered . | . . . . . . . Exploration Rate (%) 60 | 2 95 85 69 66 35 71 Regions Visited 6 Branch Regions 4 Pre-discovered Areas 2 | . . . 1 . . 1 Known Exits Taken 1 | . . . . . 1 . Unknown Exits Taken 5 | 1 1 1 1 1 . . Scrap Searched 3 | . . 1 . 2 . . Spaces Dug 5 | . . . . 1 3 1 Terrain Destroyed 105 | . 4 78 . 1 3 19 Melee 5 | . . . . 1 3 1 Projectile . | . . . . . . . AOE 100 | . 4 78 . . . 18 Terrain Rammed . | . . . . . . . Walls Destroyed . | . . . . . . . Machines Disabled . | . . . . . . . Actions | -11 -10 -10 -10 -9 -8 -8 --------- Run | Yrd Mat Min Exi Min Mat Sto Total 3511 | 1 798 657 369 430 608 648 Wait 172 | . 16 20 . . 89 47 Move 3019 | . 707 561 352 407 475 517 Hop . | . . . . . . . Pick Up 36 | . 9 10 6 2 6 3 Fast Attach 19 | . 4 3 . 1 7 4 Attach 15 | . 1 8 1 . 1 4 Detach 4 | . . 1 . . 1 2 Swap 17 | 1 2 4 1 2 3 4 Drop 33 | . 11 8 3 3 1 7 Fire 83 | . 45 25 . 8 1 4 Melee 99 | . . 15 6 7 24 47 Ram . | . . . . . . . Kick 3 | . 3 . . . . . Crush 2 | . . 2 . . . . Escape Stasis 8 | . . . . . . 8 Rewire 1 | . . . . . . 1 Trap . | . . . . . . . Miscellaneous . | . . . . . . . Route ------- -11/Scrapyard -10/Materials (discovered 4 exits: [*Mat x2] / [*Min] / [*Sub]) -10/Mines (discovered 3 exits: [*Mat x2] / *Exi) -10/Exiles (discovered 2 exits: [*Min x2]) -9/Mines -8/Materials (discovered 2 exits: *Sto x2) -8/Storage (discovered 1 exit: [*Fac]) History --------- Turn | Location | Event 3 | -11/Scrapyard | Discovered new exit (range 0) 3 | -11/Scrapyard | Entered Materials 303 | -10/Materials | Build established: Mutant 418 | -10/Materials | Discovered new exit (range 13) 646 | -10/Materials | Discovered new exit (range 5) 703 | -10/Materials | Derelicts attacked the area 813 | -10/Materials | Discovered new exit (range 3) 972 | -10/Materials | Discovered new exit (range 14) 1016 | -10/Materials | Entered Mines 1109 | -10/Mines | Discovered new exit (range 8) 1202 | -10/Mines | Received a Mining Laser from a helpful Derelict 1280 | -10/Mines | Assembled infested the area 1326 | -10/Mines | Core integrity fell below 50% 1376 | -10/Mines | Lost 4 parts (1p1n2w) 1394 | -10/Mines | Discovered new exit (range 9) 1528 | -10/Mines | Found DCF Scrap (14 items) 1645 | -10/Mines | Learned Materials stockpile data 1686 | -10/Mines | Joined a pair of Derelicts in attacking an 0b10 outpost 1739 | -10/Mines | Found a damaged Exp. Sensor Array with a note attached 1742 | -10/Mines | Found Prototype Device 1845 | -10/Mines | Core integrity fell below 20% 1911 | -10/Mines | Deemed a non-threat by the Exiles lab entrance 1912 | -10/Mines | Discovered new exit (range 5) 1916 | -10/Mines | Entered Exiles 1931 | -10/Exiles | Discovered new exit (range 15) 1943 | -10/Exiles | Met 8R-AWN 1985 | -10/Exiles | Met EX-HEX 2094 | -10/Exiles | Met EX-BIN 2112 | -10/Exiles | Aligned with FarCom system 2113 | -10/Exiles | Given EX-Vault access code 2138 | -10/Exiles | Opened EX-Vault 2145 | -10/Exiles | Found Longsword +1 2168 | -10/Exiles | Warned to stay clear of 0b10 Research branches 2200 | -10/Exiles | Met EX-DEC 2242 | -10/Exiles | Learned location of Zion (-6) 2313 | -10/Exiles | Discovered new exit (range 11) 2323 | -10/Exiles | Left Exiles lab with Longsword +1 2323 | -10/Exiles | Entered Mines 2342 | -9/Mines | Discovered new exit (range 10) 2377 | -9/Mines | Met a Derelict bent on vengeance 2741 | -9/Mines | Entered Materials 2741 | -8/Materials | Evolved 4 slots: Utility x4 2973 | -8/Materials | Repaired Wheel 3012 | -8/Materials | Discovered new exit (range 9) 3196 | -8/Materials | Central database locked down 3418 | -8/Materials | Identified exit to Storage 3448 | -8/Materials | Entered Storage 3513 | -8/Storage | Met 01-MTF 3807 | -8/Storage | Build established: Assassin 3809 | -8/Storage | Repaired Med. Armor Plating 4117 | -8/Storage | Discovered new exit (range 9) 4166 | -8/Storage | Core integrity fell below 50% 4179 | -8/Storage | Destroyed 01-MTF 4192 | -8/Storage | Assisted by bots powering up and referring to "LRC-V3" 4208 | -8/Storage | Lost 8 parts (1p2n3u2w) 4247 | -8/Storage | Self-destructed Last Messages --------------- 04154_ Destroyed Mak. Cloaking Device. 04154_ 01-MTF system corrupted by crushing effect. 04168_ O-16 Technician system terminally corrupted. 04169_ Com. Wheel destroyed. 04169_ Mace destroyed. 04173_ Destroyed Exp. Heat Sink. 04175_ System corrupted: Component data lost. 04177_ Katana destroyed. 04179_ 01-MTF destroyed. 04183_ Acquired 35 matter. 04187_ Two rows of pristine grunt class robots stand immobile, all facing the entryway as if waiting for something. 04189_ Attempting to rewire G-50 Soldier. 04189_ G-50 Soldier rewired. 04192_ One of them suddenly speaks: "Hello LRC-V3. What is your command?" 04200_ System corrupted: Component data lost. 04216_ System corrupted: Matter fused (-10). 04229_ Soldier 3a triggered Shock Trap. 04229_ The floor emits a surge of raw power. 04237_ Storage Shell breached. Map ----- +----------------------------------------------------+ | ???????????????????????#%=%####### """ #####???### | | ???????????????????????#=*!#?????# """ #?????????? | | ???????????????????????# = #?????# #?????????? | | ???????????????????????# = #?????### ###?????????? | | ???????????????????????#![[#??##########?????????? | | ???????????????????????#[%=#### #?????????? | | ???????????????????????#[[* / """" #?????????? | | ???????????????????????# = #### ! *" #?????????? | | ???????????????????????# #??# "*=" #?????????? | | ???????????????????????# #??# "[[" #?????????? | | ???????????????????????# #??# "**" #?????????? | | ???????????????????????# #??# """" #?????????? | | ???????????????????????# #??# #?##?##???? | | ???????????????????????# g#??# ## # ##??? | | ???????????????????????# ######## ### #??? | | ?????????????????#+##+## g *= #???? | | ?????????????????# g =%< #???? | | ?????????????????# g ^ %*%! #???? | | ?????????????????# ######g##+######/### ##???? | | ????????????????????????# ## #######????? | | ????????????????????????# g # T#?????????? | | ????????????????????????#g """"" # #?????????? | | ????????????????????????# [[["?# #?????????? | | ????????????????????????# """""?#######?????????? | | ????????????????????????#g" "????????????????????? | | ????????????????????????#@"[=[???????????????????? | | ????????????????????????# """""??????????????????? | | ????????????????????????# ??????????????????????? | | ????????????????????Y???###??????????????????????? | | ?????????????????????????????????????????????????? | | ?????????????????????????????????????????????????? | | | | | | | | | | | | | | | | | | | | | | | | | | | | | | | | | | | | | | | +----------------------------------------------------+ Best States ------------- Heat Dissipation 39 Energy Generation 14 Energy Capacity 250 Matter Stores 300 Matter Capacity 300 Sight Range 20 Terrain Scan Density 10 Armor Coverage 525 Resistance: EM 15 Power Shielding 66 Propulsion Shielding 33 Evasion (%) 55 Recoil Reduction 2 Item Schematics ----------------- None Robot Schematics ------------------ None Fabricated ------------ Nothing Repaired ---------- Wheel | 10% | -8/Materials Med. Armor Plating | 35% | -8/Storage Alien Tech Used ----------------- None Achievements -------------- None Challenges ------------ None Game ------ Seed NullSuperchargedPenetrator Manual? 0 Play Time 00:37:39 Cumulative 412.8 hours Start 2025.08.12 @ 23:28:03 End 2025.08.13 @ 17:29:57 Sessions 4 Manual Loads 0 Difficulty Rogue Special Mode None Game No. 272 Rogue 272 Adventurer 0 Explorer 0 Win Type - Total 28 Types 22/0/4/2/0/0/0/0/0/0 Lore% 91 Gallery% 82 Achievement% 68 Wizard Run 0 Options --------- Layout 0 ASCII 1 Keyboard 1 Movement Arrows Keybinds 0 Fullscreen 2 Font 18/Terminus Map View 76x50 Zoom Use 0% Tactical HUD 1 Map Filters NONE Filters NONE Steam 1 RUN: 5a847f67-c8f2-4b94-a111-4c54832d1b98